fUSD/lending_fUSD_20250302
["ID","MTS","AMOUNT","RATE_DAILY","PERIOD"]
[355171108,1740943855369,-500.0,0.00024931,2]
[355171111,1740943855381,-500.0,0.00024931,2]
[355171113,1740943855397,-500.0,0.00024931,2]
[355171116,1740943855412,-500.0,0.00024931,2]
[355171118,1740943855427,-500.0,0.00024931,2]
[355171121,1740943855442,-1435.99,0.00024931,2]
[355171123,1740943855457,-500.0,0.00024931,2]
[355171126,1740943855472,-500.0,0.00024931,2]
[355171128,1740943855485,-500.0,0.00024931,2]
[355171131,1740943855501,-500.0,0.00024931,2]
[355171134,1740943855515,-500.0,0.00024931,2]
[355171136,1740943855530,-6411.85,0.00024931,2]
[355171138,1740943855544,-500.0,0.00024931,2]
[355171141,1740943855557,-500.0,0.00024931,2]
[355171143,1740943855571,-500.0,0.00024931,2]
[355171146,1740943855586,-500.0,0.00024931,2]
[355171148,1740943855601,-500.0,0.00024931,2]
[355171151,1740943855614,-500.0,0.00024931,2]
[355171153,1740943855627,-500.0,0.00024931,2]
[355171155,1740943855639,-1039.69,0.00024931,2]
[355171158,1740943855651,-1173.46897,0.00024931,7]
[355171160,1740943855664,-1173.46897,0.00024931,7]
[355171163,1740943855681,-1173.46897,0.00024931,7]
[355171165,1740943855693,-500.0,0.00024931,2]
[355171167,1740943855704,-1173.46897,0.00024931,7]
[355171169,1740943855716,-1173.46897,0.00024931,7]
[355171172,1740943855728,-1173.46897,0.00024931,7]
[355171174,1740943855743,-500.0,0.00024931,2]
[355171177,1740943855756,-500.0,0.00024931,2]
[355171179,1740943855768,-819.1,0.00024931,2]
[355171181,1740943855779,-500.0,0.00024931,2]
[355171183,1740943855791,-500.0,0.00024931,2]
[355171186,1740943855803,-500.0,0.00024931,2]
[355171188,1740943855815,-500.0,0.00024931,2]
[355171190,1740943855827,-1454.29,0.00024931,2]
[355171193,1740943855839,-889.51,0.00024931,2]
[355171195,1740943855851,-2697.14,0.00024931,2]
[355171197,1740943855863,-329.18819645,0.00024931,2]
[355171200,1740943855876,-1113.19,0.00024931,2]
[355171202,1740943855888,-500.0,0.00024931,2]
[355171204,1740943855900,-500.0,0.00024931,2]
[355171206,1740943855913,-151.0,0.00024931,7]
[355171209,1740943855924,-151.0,0.00024931,7]
[355171211,1740943855936,-541.12,0.00024931,2]
[355171213,1740943855948,-1050.18,0.00024931,2]
[355171216,1740943855960,-500.0,0.00024931,2]
[355171218,1740943855972,-500.0,0.00024931,2]
[355171220,1740943855983,-1814.48,0.00024931,2]
[355171223,1740943855999,-548.89,0.00024931,2]
[355171225,1740943856012,-568.26,0.00024931,2]
[355171227,1740943856028,-500.0,0.00024931,2]
[355171230,1740943856050,-500.0,0.00024931,2]
[355171232,1740943856064,-1000.0,0.00024931,2]
[355171234,1740943856076,-1228.01,0.00024931,2]
[355171237,1740943856088,-528.5,0.00024931,2]
[355171239,1740943856101,-500.0,0.00024931,2]
[355171241,1740943856115,-500.0,0.00024931,2]
[355171244,1740943856128,-500.0,0.00024931,2]
[355171246,1740943856139,-163.4,0.00024931,2]
[355171248,1740943856152,-540.36,0.00024931,2]
[355171251,1740943856165,-500.0,0.00024931,2]
[355171253,1740943856176,-500.0,0.00024931,2]
[355171255,1740943856190,-500.0,0.00024931,2]
[355171256,1740943856203,-636.81,0.00024931,2]
[355171257,1740943856216,-500.0,0.00024931,2]
[355171258,1740943856228,-785.35,0.00024931,2]
[355171259,1740943856240,-1133.26,0.00024931,2]
[355171260,1740943856252,-500.0,0.00024931,2]
[355171261,1740943856265,-1458.58,0.00024931,2]
[355171262,1740943856278,-151.0,0.00024931,7]
[355171263,1740943856292,-581.88,0.00024931,2]
[355171265,1740943856307,-196.780472,0.00024931,7]
[355171267,1740943856319,-500.0,0.00024931,2]
[355171270,1740943856331,-500.0,0.00024931,2]
[355171272,1740943856344,-907.66,0.00024931,2]
[355171274,1740943856356,-500.0,0.00024931,2]
[355171276,1740943856368,-151.0,0.00024931,7]
[355171279,1740943856381,-1024.84,0.00024931,2]
[355171281,1740943856393,-151.0,0.00024931,7]
[355171283,1740943856404,-867.23,0.00024931,2]
[355171286,1740943856417,-500.0,0.00024931,2]
[355171288,1740943856429,-500.0,0.00024931,2]
[355171290,1740943856442,-151.0,0.00024931,7]
[355171292,1740943856454,-151.0,0.00024931,7]
[355171295,1740943856466,-500.0,0.00024931,2]
[355171297,1740943856478,-250.647285,0.00024931,7]
[355171299,1740943856491,-500.0,0.00024931,2]
[355171301,1740943856503,-500.0,0.00024931,2]
[355171304,1740943856516,-500.0,0.00024931,2]
[355171306,1740943856529,-908.11,0.00024931,2]
[355171308,1740943856542,-500.0,0.00024931,2]
[355171310,1740943856555,-746.51,0.00024931,2]
[355171313,1740943856567,-500.0,0.00024931,2]
[355171315,1740943856580,-500.0,0.00024931,2]
[355171317,1740943856593,-500.0,0.00024931,2]
[355171320,1740943856606,-500.0,0.00024931,2]
[355171322,1740943856618,-503.20352872,0.00024931,2]
[355171324,1740943856630,-752.29,0.00024931,2]
[355171326,1740943856642,-500.0,0.00024931,2]
[355171329,1740943856655,-999.46,0.00024931,2]
[355171331,1740943856667,-184.122392,0.00024931,7]
[355171333,1740943856680,-500.0,0.00024931,2]
[355171335,1740943856691,-500.0,0.00024931,2]
[355171338,1740943856704,-500.0,0.00024931,2]
[355171340,1740943856716,-1143.5,0.00024931,2]
[355171342,1740943856728,-644.38,0.00024931,2]
[355171345,1740943856741,-500.0,0.00024931,2]
[355171347,1740943856754,-500.0,0.00024931,2]
[355171349,1740943856766,-151.0,0.00024931,7]
[355171351,1740943856778,-151.0,0.00024931,7]
[355171354,1740943856790,-292.407244,0.00024931,7]
[355171356,1740943856802,-500.0,0.00024931,2]
[355171358,1740943856814,-500.0,0.00024931,2]
[355171360,1740943856826,-500.0,0.00024931,2]
[355171363,1740943856838,-500.0,0.00024931,2]
[355171365,1740943856849,-500.0,0.00024931,2]
[355171367,1740943856861,-500.0,0.00024931,2]
[355171369,1740943856873,-1546.35,0.00024931,2]
[355171372,1740943856885,-793.28,0.00024931,2]
[355171374,1740943856897,-500.0,0.00024931,2]
[355171376,1740943856908,-500.0,0.00024931,2]
[355171378,1740943856920,-500.0,0.00024931,2]
[355171381,1740943856933,-500.0,0.00024931,2]
[355171383,1740943856945,-682.73,0.00024931,2]
[355171385,1740943856956,-500.0,0.00024931,2]
[355171387,1740943856969,-582.95,0.00024931,2]
[355171390,1740943856981,-530.37,0.00024931,2]
[355171392,1740943856994,-500.0,0.00024931,2]
[355171394,1740943857004,-500.0,0.00024931,2]
[355171396,1740943857014,-1412.58,0.00024931,2]
[355171398,1740943857025,-944.98,0.00024931,2]
[355171400,1740943857036,-500.0,0.00024931,2]
[355171402,1740943857046,-151.0,0.00024931,7]
[355171404,1740943857056,-500.0,0.00024931,2]
[355171406,1740943857066,-193.789841,0.00024931,7]
[355171408,1740943857076,-500.0,0.00024931,2]
[355171410,1740943857086,-500.0,0.00024931,2]
[355171412,1740943857096,-500.0,0.00024931,2]
[355171414,1740943857107,-675.32,0.00024931,2]
[355171416,1740943857116,-597.14,0.00024931,2]
[355171418,1740943857126,-500.0,0.00024931,2]
[355171420,1740943857136,-588.07,0.00024931,2]
[355171422,1740943857146,-500.0,0.00024931,2]
[355171424,1740943857155,-300.0,0.00024931,2]
[355171426,1740943857165,-500.0,0.00024931,2]
[355171428,1740943857175,-500.0,0.00024931,2]
[355171430,1740943857184,-350.627185,0.00024931,7]
[355171432,1740943857195,-944.06,0.00024931,2]
[355171434,1740943857205,-350.627185,0.00024931,7]
[355171436,1740943857218,-350.627185,0.00024931,7]
[355171438,1740943857228,-500.0,0.00024931,2]
[355171440,1740943857239,-500.0,0.00024931,2]
[355171442,1740943857248,-577.96,0.00024931,2]
[355171444,1740943857258,-350.627185,0.00024931,7]
[355171446,1740943857268,-350.627185,0.00024931,7]
[355171448,1740943857279,-350.627187,0.00024931,7]
[355171450,1740943857289,-500.0,0.00024931,2]
[355171452,1740943857299,-500.0,0.00024931,2]
[355171454,1740943857309,-562.72,0.00024931,2]
[355171456,1740943857319,-500.0,0.00024931,2]
[355171458,1740943857329,-662.55,0.00024931,2]
[355171460,1740943857339,-500.0,0.00024931,2]
[355171462,1740943857350,-500.0,0.00024931,2]
[355171464,1740943857361,-500.0,0.00024931,2]
[355171467,1740943857375,-500.0,0.00024931,2]
[355171469,1740943857385,-500.0,0.00024931,2]
[355171470,1740943857395,-500.0,0.00024931,2]
[355171472,1740943857405,-606.71,0.00024931,2]
[355171474,1740943857415,-500.0,0.00024931,2]
[355171475,1740943857425,-500.0,0.00024931,2]
[355171477,1740943857435,-500.0,0.00024931,2]
[355171479,1740943857446,-516.65,0.00024931,2]
[355171480,1740943857455,-500.0,0.00024931,2]
[355171482,1740943857465,-500.0,0.00024931,2]
[355171484,1740943857475,-1235.316214,0.00024931,7]
[355171485,1740943857484,-1235.316214,0.00024931,7]
[355171487,1740943857497,-500.0,0.00024931,2]
[355171489,1740943857508,-500.0,0.00024931,2]
[355171491,1740943857518,-500.0,0.00024931,2]
[355171492,1740943857528,-500.84,0.00024931,2]
[355171494,1740943857538,-1235.316214,0.00024931,7]
[355171496,1740943857548,-1235.316214,0.00024931,7]
[355171497,1740943857558,-500.0,0.00024931,2]
[355171499,1740943857568,-715.6,0.00024931,2]
[355171501,1740943857578,-653.24,0.00024931,2]
[355171502,1740943857588,-500.0,0.00024931,2]
[355171504,1740943857598,-500.0,0.00024931,2]
[355171506,1740943857609,-722.93,0.00024931,2]
[355171540,1740943858052,-500.0,0.00024931,2]
[355171543,1740943858078,-346.88099914,0.00024931,2]
[355171546,1740943858105,-500.0,0.00024931,2]
[355171549,1740943858128,-1202.36,0.00024931,2]
[355171551,1740943858138,-500.0,0.00024931,2]
[355171553,1740943858148,-500.0,0.00024931,2]
[355171555,1740943858158,-500.0,0.00024931,2]
[355171556,1740943858168,-500.0,0.00024931,2]
[355171558,1740943858177,-4669.618854,0.00024931,7]
[355171560,1740943858187,-4669.618854,0.00024931,7]
[355171562,1740943858197,-151.0,0.00024931,7]
[355171564,1740943858207,-151.0,0.00024931,7]
[355171565,1740943858217,-151.0,0.00024931,7]
[355171567,1740943858227,-500.0,0.00024931,2]
[355171569,1740943858236,-4669.618854,0.00024931,7]
[355171571,1740943858246,-4669.618854,0.00024931,7]
[355171573,1740943858255,-500.0,0.00024931,2]
[355171574,1740943858265,-500.0,0.00024931,2]
[355171576,1740943858275,-207.639318,0.00024931,7]
[355171578,1740943858284,-267.86546,0.00024931,7]
[355171580,1740943858294,-207.639318,0.00024931,7]
[355171582,1740943858303,-3775.86,0.00024931,2]
[355171583,1740943858313,-500.0,0.00024931,2]
[355171585,1740943858323,-500.0,0.00024931,2]
[355171587,1740943858332,-500.0,0.00024931,2]
[355171589,1740943858342,-739.02,0.00024931,2]
[355171591,1740943858351,-207.639318,0.00024931,7]
[355171592,1740943858360,-207.639318,0.00024931,7]
[355171594,1740943858370,-500.0,0.00024931,2]
[355171596,1740943858380,-151.0,0.00024931,7]
[355171598,1740943858389,-151.0,0.00024931,7]
[355171600,1740943858399,-569.32,0.00024931,2]
[355171601,1740943858408,-500.0,0.00024931,2]
[355171603,1740943858418,-500.0,0.00024931,2]
[355171605,1740943858427,-500.0,0.00024931,2]
[355171607,1740943858437,-374.20819412,0.00024931,2]
[355171609,1740943858447,-500.0,0.00024931,2]
[355171610,1740943858457,-1046.76,0.00024931,2]
[355171612,1740943858467,-500.0,0.00024931,2]
[355171614,1740943858476,-500.0,0.00024931,2]
[355171616,1740943858486,-500.0,0.00024931,2]
[355171617,1740943858496,-560.05,0.00024931,2]
[355171619,1740943858505,-500.0,0.00024931,2]
[355171621,1740943858515,-500.0,0.00024931,2]
[355171623,1740943858526,-500.0,0.00024931,2]
[355171624,1740943858536,-589.18,0.00024931,2]
[355171626,1740943858545,-666.68,0.00024931,2]
[355171628,1740943858555,-500.0,0.00024931,2]
[355171630,1740943858565,-500.0,0.00024931,2]
[355171631,1740943858575,-500.0,0.00024931,2]
[355171633,1740943858585,-500.0,0.00024931,2]
[355171635,1740943858595,-500.0,0.00024931,2]
[355171637,1740943858606,-500.0,0.00024931,2]
[355171639,1740943858615,-500.0,0.00024931,2]
[355171640,1740943858624,-500.0,0.00024931,2]
[355171642,1740943858634,-500.0,0.00024931,2]
[355171644,1740943858643,-679.94,0.00024931,2]
[355171646,1740943858654,-500.0,0.00024931,2]
[355171647,1740943858663,-500.0,0.00024931,2]
[355171649,1740943858673,-500.0,0.00024931,2]
[355171651,1740943858682,-500.0,0.00024931,2]
[355171653,1740943858691,-679.32,0.00024931,2]
[355171654,1740943858700,-500.0,0.00024931,2]
[355171656,1740943858710,-500.0,0.00024931,2]
[355171658,1740943858720,-500.0,0.00024931,2]
[355171660,1740943858730,-500.0,0.00024931,2]
[355171661,1740943858740,-500.0,0.00024931,2]
[355171663,1740943858749,-940.25,0.00024931,2]
[355171665,1740943858759,-789.14,0.00024931,2]
[355171667,1740943858768,-551.5,0.00024931,2]
[355171668,1740943858780,-500.0,0.00024931,2]
[355171670,1740943858789,-405.91,0.00024977,2]
[355171672,1740943858798,-100000.0,0.00025,3]
[355171674,1740943858807,-2291.4824656,0.00025,2]
[355171675,1740943858817,-1940.91657901,0.00025,10]
[355171677,1740943858826,-151.0,0.00025,7]
[355171679,1740943858836,-151.37,0.00025,2]
[355171680,1740943858846,-151.37,0.00025,2]
[355171682,1740943858855,-151.37,0.00025,2]
[355171684,1740943858864,-151.37,0.00025,2]
[355171686,1740943858874,-151.37,0.00025,2]
[355171687,1740943858883,-151.37,0.00025,2]
[355171688,1740943858892,-1176.10002366,0.00025067,10]
[355171689,1740943858902,-200.53223133,0.00025067,10]
[355171690,1740943858911,-4762.29657338,0.00025072,4]
[355171691,1740943858921,-2000.0,0.00025087,4]
[355171692,1740943858930,-405.91,0.00025103,2]
[355171693,1740943858939,-398.34005928,0.00025105,2]
[355171694,1740943858948,-323.0,0.0002515,120]
[355171695,1740943858957,-3547.34,0.00025204,2]
[355171696,1740943858967,-159.46233499,0.00025204,2]
[355171697,1740943858976,-151.0,0.00025204,7]
[355171698,1740943858985,-151.0,0.00025204,7]
[355171699,1740943858995,-156.832982,0.00025205,7]
[355171700,1740943859004,-151.0,0.00025205,7]
[355171701,1740943859015,-239.850456,0.00025205,7]
[355171702,1740943859027,-151.0,0.00025205,7]
[355171703,1740943859038,-151.0,0.00025205,7]
[355171704,1740943859047,-500.0,0.00025205,2]
[355171706,1740943859056,-500.0,0.00025205,2]
[355171707,1740943859066,-151.0,0.00025205,7]
[355171708,1740943859075,-151.0,0.00025205,7]
[355171710,1740943859085,-391.683792,0.00025205,2]
[355171712,1740943859095,-500.0,0.00025205,2]
[355171714,1740943859107,-500.0,0.00025205,2]
[355171716,1740943859118,-191.324349,0.00025205,2]
[355171718,1740943859128,-480.47589033,0.00025205,2]
[355171720,1740943859137,-500.0,0.00025205,2]
[355171722,1740943859147,-500.0,0.00025205,2]
[355171724,1740943859156,-500.0,0.00025205,2]
[355171726,1740943859166,-500.0,0.00025205,2]
[355171728,1740943859175,-500.0,0.00025205,2]
[355171730,1740943859185,-637.76,0.00025205,2]
[355171732,1740943859195,-500.0,0.00025205,2]
[355171734,1740943859204,-500.0,0.00025205,2]
[355171736,1740943859213,-500.0,0.00025205,2]
[355171738,1740943859223,-151.0,0.00025205,7]
[355171740,1740943859232,-500.0,0.00025205,2]
[355171742,1740943859242,-500.0,0.00025205,2]
[355171744,1740943859251,-500.0,0.00025205,2]
[355171746,1740943859261,-379.51032069,0.00025205,2]
[355171748,1740943859270,-447.89845555,0.00025205,2]
[355171750,1740943859283,-500.0,0.00025205,2]
[355171752,1740943859292,-163.45911017,0.00025205,2]
[355171754,1740943859302,-453.33716282,0.00025205,2]
[355171756,1740943859312,-403.097424,0.00025205,7]
[355171758,1740943859321,-403.097426,0.00025205,7]
[355171760,1740943859331,-500.0,0.00025205,2]
[355171762,1740943859340,-151.0,0.00025205,7]
[355171764,1740943859350,-251.05,0.00025205,2]
[355171766,1740943859359,-631.11,0.00025205,2]
[355171768,1740943859368,-500.0,0.00025205,2]
[355171770,1740943859378,-214.715431,0.00025205,7]
[355171772,1740943859387,-500.0,0.00025205,2]
[355171774,1740943859396,-500.0,0.00025205,2]
[355171776,1740943859406,-166.1,0.00025205,7]
[355171778,1740943859415,-500.0,0.00025205,2]
[355171780,1740943859425,-500.0,0.00025205,2]
[355171782,1740943859435,-500.0,0.00025205,2]
[355171784,1740943859445,-500.0,0.00025205,2]
[355171786,1740943859454,-500.0,0.00025205,2]
[355171788,1740943859463,-352.491388,0.00025205,7]
[355171790,1740943859472,-252.63436375,0.00025205,2]
[355171792,1740943859483,-500.0,0.00025205,2]
[355171794,1740943859493,-161.078587,0.00025205,2]
[355171796,1740943859502,-352.491393,0.00025205,7]
[355171798,1740943859512,-500.0,0.00025205,2]
[355171800,1740943859521,-500.0,0.00025205,2]
[355171802,1740943859533,-500.0,0.00025205,2]
[355171804,1740943859544,-500.0,0.00025205,2]
[355171806,1740943859553,-500.0,0.00025205,2]
[355171808,1740943859563,-500.0,0.00025205,2]
[355171810,1740943859572,-500.0,0.00025205,2]
[355171812,1740943859582,-151.0,0.00025205,7]
[355171814,1740943859592,-151.0,0.00025205,7]
[355171816,1740943859601,-500.0,0.00025205,2]
[355171818,1740943859611,-500.0,0.00025205,2]
[355171820,1740943859622,-500.0,0.00025205,2]
[355171822,1740943859631,-565.88,0.00025205,2]
[355171824,1740943859641,-500.0,0.00025205,2]
[355171826,1740943859651,-500.0,0.00025205,2]
[355171828,1740943859663,-162.345232,0.00025205,2]
[355171830,1740943859672,-596.68,0.00025205,2]
[355171832,1740943859682,-500.0,0.00025205,2]
[355171834,1740943859692,-500.0,0.00025205,2]
[355171836,1740943859702,-1036.108541,0.00025205,7]
[355171838,1740943859712,-500.0,0.00025205,2]
[355171839,1740943859721,-500.0,0.00025205,2]
[355171841,1740943859730,-362.30942404,0.00025205,2]
[355171843,1740943859740,-1036.108546,0.00025205,7]
[355171845,1740943859749,-500.0,0.00025205,2]
[355171847,1740943859758,-500.0,0.00025205,2]
[355171849,1740943859767,-304.06610608,0.00025205,2]
[355171851,1740943859778,-500.0,0.00025205,2]
[355171853,1740943859787,-215.13446133,0.00025205,2]
[355171855,1740943859796,-500.0,0.00025205,2]
[355171857,1740943859806,-500.0,0.00025205,2]
[355171859,1740943859815,-500.0,0.00025205,2]
[355171861,1740943859824,-500.0,0.00025205,2]
[355171863,1740943859834,-331.97976019,0.00025205,2]
[355171865,1740943859843,-500.0,0.00025205,2]
[355171867,1740943859853,-500.0,0.00025205,2]
[355171869,1740943859862,-500.0,0.00025205,2]
[355171871,1740943859872,-787.27347,0.00025205,7]
[355171873,1740943859882,-787.273462,0.00025205,7]
[355171875,1740943859893,-500.0,0.00025205,2]
[355171877,1740943859903,-500.0,0.00025205,2]
[355171879,1740943859914,-500.0,0.00025205,2]
[355171881,1740943859924,-500.0,0.00025205,2]
[355171883,1740943859935,-500.0,0.00025205,2]
[355171885,1740943859946,-500.0,0.00025205,2]
[355171887,1740943859956,-500.0,0.00025205,2]
[355171889,1740943859967,-500.0,0.00025205,2]
[355171891,1740943859978,-288.81782892,0.00025205,2]
[355171893,1740943859988,-500.0,0.00025205,2]
[355171895,1740943859998,-500.0,0.00025205,2]
[355171897,1740943860008,-500.0,0.00025205,2]
[355171899,1740943860020,-500.0,0.00025205,2]
[355171901,1740943860036,-500.0,0.00025205,2]
[355171903,1740943860048,-500.0,0.00025205,2]
[355171905,1740943860060,-500.0,0.00025205,2]
[355171907,1740943860071,-500.0,0.00025205,2]
[355171909,1740943860082,-500.0,0.00025205,2]
[355171911,1740943860093,-563.16,0.00025205,2]
[355171912,1740943860107,-233.71334232,0.00025205,2]
[355171914,1740943860117,-500.0,0.00025205,2]
[355171916,1740943860127,-500.0,0.00025205,2]
[355171918,1740943860138,-500.0,0.00025205,2]
[355171921,1740943860148,-500.0,0.00025205,2]
[355171923,1740943860159,-501.27,0.00025205,2]
[355171925,1740943860170,-242.837052,0.00025205,7]
[355171927,1740943860180,-500.0,0.00025205,2]
[355171929,1740943860191,-242.837042,0.00025205,7]
[355171931,1740943860202,-521.82,0.00025205,2]
[355171933,1740943860213,-500.0,0.00025205,2]
[355171935,1740943860223,-500.0,0.00025205,2]
[355171937,1740943860233,-500.0,0.00025205,2]
[355171939,1740943860243,-500.0,0.00025205,2]
[355171941,1740943860253,-629.3,0.00025205,2]
[355171943,1740943860263,-500.0,0.00025205,2]
[355171945,1740943860275,-500.0,0.00025205,2]
[355171947,1740943860285,-500.0,0.00025205,2]
[355171949,1740943860296,-500.0,0.00025205,2]
[355171951,1740943860306,-614.75,0.00025205,2]
[355171953,1740943860316,-500.0,0.00025205,2]
[355171955,1740943860326,-500.0,0.00025205,2]
[355171957,1740943860336,-500.0,0.00025205,2]
[355171959,1740943860346,-500.0,0.00025205,2]
[355171961,1740943860356,-500.0,0.00025205,2]
[355171963,1740943860366,-500.0,0.00025205,2]
[355171965,1740943860376,-500.0,0.00025205,2]
[355171967,1740943860386,-527.35380187,0.00025205,2]
[355171969,1740943860395,-500.0,0.00025205,2]
[355171971,1740943860406,-500.0,0.00025205,2]
[355171973,1740943860418,-446.77277938,0.00025205,2]
[355171975,1740943860428,-500.0,0.00025205,2]
[355171977,1740943860438,-500.0,0.00025205,2]
[355171979,1740943860447,-500.0,0.00025205,2]
[355171981,1740943860457,-500.0,0.00025205,2]
[355171983,1740943860466,-500.0,0.00025205,2]
[355171985,1740943860475,-500.0,0.00025205,2]
[355171987,1740943860485,-500.0,0.00025205,2]
[355171989,1740943860495,-500.0,0.00025205,2]
[355171991,1740943860504,-500.0,0.00025205,2]
[355171993,1740943860514,-500.0,0.00025205,2]
[355171995,1740943860525,-500.0,0.00025205,2]
[355171997,1740943860535,-500.0,0.00025205,2]
[355171999,1740943860544,-500.0,0.00025205,2]
[355172001,1740943860554,-500.0,0.00025205,2]
[355172003,1740943860563,-500.0,0.00025205,2]
[355172005,1740943860573,-500.0,0.00025205,2]
[355172007,1740943860582,-500.0,0.00025205,2]
[355172009,1740943860592,-525.714673,0.00025205,7]
[355172011,1740943860601,-500.0,0.00025205,2]
[355172013,1740943860611,-525.714673,0.00025205,7]
[355172015,1740943860621,-626.54,0.00025205,2]
[355172017,1740943860631,-500.0,0.00025205,2]
[355172019,1740943860641,-500.0,0.00025205,2]
[355172021,1740943860650,-500.0,0.00025205,2]
[355172024,1740943860660,-500.0,0.00025205,2]
[355172025,1740943860672,-500.0,0.00025205,2]
[355172027,1740943860682,-151.0,0.00025205,7]
[355172029,1740943860691,-500.0,0.00025205,2]
[355172031,1740943860701,-619.01,0.00025205,2]
[355172033,1740943860710,-500.0,0.00025205,2]
[355172035,1740943860720,-205.138487,0.00025205,7]
[355172037,1740943860730,-500.0,0.00025205,2]
[355172039,1740943860739,-151.0,0.00025205,7]
[355172041,1740943860749,-500.0,0.00025205,2]
[355172043,1740943860758,-205.138493,0.00025205,7]
[355172045,1740943860768,-500.0,0.00025205,2]
[355172047,1740943860777,-500.0,0.00025205,2]
[355172049,1740943860787,-500.0,0.00025205,2]
[355172051,1740943860797,-500.0,0.00025205,2]
[355172053,1740943860806,-500.0,0.00025205,2]
[355172055,1740943860815,-500.0,0.00025205,2]
[355172057,1740943860825,-500.0,0.00025205,2]
[355172059,1740943860834,-500.0,0.00025205,2]
[355172061,1740943860844,-500.0,0.00025205,2]
[355172063,1740943860853,-500.0,0.00025205,2]
[355172065,1740943860863,-500.0,0.00025205,2]
[355172067,1740943860872,-225.414588,0.00025205,7]
[355172069,1740943860881,-500.0,0.00025205,2]
[355172071,1740943860891,-500.0,0.00025205,2]
[355172073,1740943860901,-225.414579,0.00025205,7]
[355172075,1740943860910,-572.34,0.00025205,2]
[355172077,1740943860919,-500.0,0.00025205,2]
[355172079,1740943860929,-500.0,0.00025205,2]
[355172081,1740943860938,-500.48,0.00025205,2]
[355172083,1740943860947,-500.0,0.00025205,2]
[355172085,1740943860957,-500.0,0.00025205,2]
[355172087,1740943860966,-1930.323999,0.00025205,7]
[355172089,1740943860975,-500.0,0.00025205,2]
[355172091,1740943860985,-545.30018234,0.00025205,2]
[355172093,1740943860994,-1930.323997,0.00025205,7]
[355172095,1740943861004,-525.69,0.00025205,2]
[355172097,1740943861014,-500.0,0.00025205,2]
[355172099,1740943861032,-405.800586,0.00025205,7]
[355172101,1740943861042,-500.0,0.00025205,2]
[355172103,1740943861051,-405.800586,0.00025205,7]
[355172105,1740943861061,-500.0,0.00025205,2]
[355172107,1740943861071,-500.0,0.00025205,2]
[355172109,1740943861080,-500.0,0.00025205,2]
[355172111,1740943861090,-405.800586,0.00025205,7]
[355172113,1740943861100,-500.0,0.00025205,2]
[355172115,1740943861109,-405.800582,0.00025205,7]
[355172117,1740943861119,-500.0,0.00025205,2]
[355172119,1740943861129,-500.0,0.00025205,2]
[355172121,1740943861139,-500.0,0.00025205,2]
[355172123,1740943861148,-500.0,0.00025205,2]
[355172125,1740943861158,-500.0,0.00025205,2]
[355172127,1740943861167,-500.0,0.00025205,2]